bitfinex-derivatives/quotes_BNBF0:USTF0_20250130
["timestamp","ask_amount","ask_price","bid_price","bid_amount"]
[1738214516415,1.10358171,677.86,676.72,0.2955432]
[1738214516714,0.27127414,677.85,676.72,0.2955432]
[1738214516914,0.27127372,677.84,676.73,0.24294349]
[1738214517115,0.27127372,677.83,676.75,0.2955301]
[1738214517414,0.27127372,677.82,676.76,0.24294349]
[1738214517609,0.27127372,677.81,676.78,0.295517]
[1738214517814,0.27127372,677.86,676.79,0.24294349]
[1738214518015,0.27127372,677.85,676.8,0.29550827]
[1738214518213,1.10358171,677.87,676.8,0.29550827]
[1738214518413,0.27127809,677.86,676.8,0.29550827]
[1738214521116,1.10358171,677.79,676.81,0.24281961]
[1738214521317,1.10358171,677.79,676.82,0.29549954]
[1738214521517,1.10358171,677.79,676.83,0.24281961]
[1738214521718,1.10358171,677.79,676.85,0.29548644]
[1738214525317,1.10358171,677.92,676.85,0.29548644]
[1738214525517,0.27123523,677.91,676.85,0.29548644]
[1738214526517,0.27123559,677.9,676.85,0.29548644]
[1738214526717,0.27123559,677.91,676.85,0.29548644]
[1738214526913,0.27123559,677.9,676.85,0.29548644]
[1738214527119,0.27123559,677.91,676.85,0.29548644]
[1738214528319,0.27123493,677.9,676.86,0.24255193]
[1738214528521,1.10358171,677.89,676.87,0.29547771]
[1738214528813,0.27123493,677.88,676.88,0.24255193]
[1738214529018,0.27123493,677.88,676.89,0.29546898]
[1738214529218,0.27123493,677.88,676.9,0.24255193]
[1738214529420,0.27123493,677.88,676.91,0.29546025]
[1738214529814,1.10358171,677.89,676.91,0.29546025]
[1738214530017,0.27122762,677.88,676.91,0.29546025]
[1738214530918,0.27122762,677.88,676.92,0.24262479]
[1738214531116,0.27122762,677.88,676.93,0.29545152]
[1738214531319,1.10358171,677.89,676.93,0.29545152]
[1738214532215,1.10358171,677.9,676.93,0.29545152]
[1738214534724,2.25314599,678.44,676.93,0.29545152]
[1738214534725,1.10358171,678.13,676.93,0.29545152]
[1738214534923,0.27119121,678.12,676.93,0.29545152]
[1738214536721,1.10358171,678.13,676.93,0.29545152]
[1738214537324,1.10358171,678.19,676.93,0.29545152]
[1738214537520,0.27117531,678.18,676.93,0.29545152]
[1738214538318,0.27117789,678.17,676.93,0.29545152]
[1738214538622,0.27117789,678.16,676.93,0.29545152]
[1738214538824,0.27117789,678.15,676.93,0.29545152]
[1738214539024,0.27117789,678.14,676.93,0.29545152]
[1738214539224,1.10358171,678.19,676.93,0.29545152]
[1738214539525,0.27117807,678.18,676.93,0.29545152]
[1738214540426,1.10358171,678.19,676.93,0.29545152]
[1738214540628,0.27117648,678.18,676.93,0.29545152]
[1738214541225,0.27117648,678.18,676.94,0.24239517]
[1738214541426,0.27117648,678.18,676.96,0.29543843]
[1738214541631,0.27117648,678.17,676.97,0.24239517]
[1738214541820,0.27117101,678.16,676.99,0.29542533]
[1738214542022,0.27117101,678.15,677.0,0.24239446]
[1738214542225,0.27117101,678.25,677.02,0.29541224]
[1738214542426,0.27117101,678.24,677.02,0.29541224]
[1738214542727,0.27117101,678.25,677.02,0.29541224]
[1738214542928,0.27117101,678.24,677.02,0.29541224]
[1738214543128,0.27117101,678.25,677.02,0.29541224]
[1738214543428,0.27117101,678.24,677.02,0.29541224]
[1738214543627,0.27117101,678.25,677.02,0.29541224]
[1738214544422,1.10358171,678.26,677.02,0.29541224]
[1738214544728,0.27117181,678.25,677.02,0.29541224]
[1738214545428,0.27117181,678.25,677.03,0.24243767]
[1738214545624,0.27117181,678.25,677.04,0.29540352]
[1738214547429,1.10358171,678.2,677.04,0.29540352]
[1738214547628,0.27117181,678.19,677.04,0.29540352]
[1738214548524,1.10358171,678.2,677.04,0.29540352]
[1738214548729,0.27117059,678.19,677.04,0.29540352]
[1738214550434,0.27117059,678.18,677.04,0.29540352]
[1738214550632,0.27117059,678.22,677.04,0.29540352]
[1738214550831,0.27117059,678.21,677.04,0.29540352]
[1738214551034,0.27117059,678.22,677.04,0.29540352]
[1738214551231,0.27117059,678.21,677.04,0.29540352]
[1738214551429,0.27117059,678.22,677.04,0.29540352]
[1738214551630,0.27117059,678.21,677.04,0.29540352]
[1738214551825,0.27117059,678.22,677.04,0.29540352]
[1738214552029,0.27117059,678.21,677.04,0.29540352]
[1738214552228,0.27117059,678.22,677.04,0.29540352]
[1738214552432,0.27117059,678.21,677.04,0.29540352]
[1738214552633,0.27117059,678.2,677.04,0.29540352]
[1738214552832,0.27117059,678.19,677.04,0.29540352]
[1738214553133,0.27117059,678.18,677.04,0.29540352]
[1738214553333,0.27117059,678.17,677.04,0.29540352]
[1738214553532,0.27117559,678.16,677.04,0.29540352]
[1738214553731,0.27117559,678.15,677.04,0.29540352]
[1738214553929,0.27117559,678.14,677.04,0.29540352]
[1738214554133,0.27117559,678.19,677.04,0.29540352]
[1738214557440,1.10358171,678.14,677.05,0.24230092]
[1738214557635,0.27117559,678.13,677.06,0.29539479]
[1738214560135,1.10358171,678.04,677.07,0.24231034]
[1738214560339,0.27117398,678.03,677.08,0.29538606]
[1738214563043,1.10358171,678.0,677.08,0.29538606]
[1738214563249,0.27117398,677.99,677.08,0.29538606]
[1738214564247,1.10358171,678.0,677.08,0.29538606]
[1738214564447,0.27120784,677.99,677.08,0.29538606]
[1738214567455,1.10358171,678.0,677.08,0.29538606]
[1738214567653,1.10358171,677.96,677.08,0.29538606]
[1738214570748,1.10358171,677.95,677.08,0.29538606]
[1738214573550,1.10358171,677.98,677.08,0.29538606]
[1738214574355,0.2711829,677.97,677.08,0.29538606]
[1738214575255,1.10358171,677.98,677.08,0.29538606]
[1738214575455,0.27117852,677.97,677.08,0.29538606]
[1738214575859,1.10358171,677.98,677.08,0.29538606]
[1738214576861,1.10358171,677.93,677.08,0.29538606]
[1738214580465,1.10358171,677.9,677.08,0.29538606]
[1738214581664,0.27125522,677.89,677.08,0.29538606]
[1738214583057,1.10358171,677.9,677.08,0.29538606]
[1738214583263,0.27125902,677.89,677.08,0.29538606]
[1738214584261,1.37484073,677.89,677.08,0.29538606]
[1738214584465,0.27125902,677.88,677.08,0.29538606]
[1738214584864,0.27125809,677.87,677.08,0.29538606]
[1738214585064,0.27125809,677.88,677.08,0.29538606]
[1738214585261,0.27125809,677.87,677.08,0.29538606]
[1738214585459,0.27125809,677.86,677.08,0.29538606]
[1738214585663,1.10358171,677.89,677.08,0.29538606]
[1738214585860,0.2712503,677.88,677.08,0.29538606]
[1738214586462,0.27124509,677.87,677.08,0.29538606]
[1738214586661,1.10358171,677.89,677.08,0.29538606]
[1738214587066,0.27124569,677.88,677.08,0.29538606]
[1738214588666,0.27124569,677.93,677.08,0.29538606]
[1738214588968,0.27124569,677.92,677.08,0.29538606]
[1738214589269,0.27124569,677.91,677.08,0.29538606]
[1738214589467,0.27124569,677.93,677.08,0.29538606]
[1738214589669,0.27124569,677.92,677.08,0.29538606]
[1738214589868,0.27124569,677.93,677.08,0.29538606]
[1738214591471,1.10358171,677.94,677.08,0.29538606]
[1738214591672,1.37484426,677.93,677.08,0.29538606]
[1738214591866,0.27126255,677.92,677.08,0.29538606]
[1738214593672,1.10358171,677.93,677.08,0.29538606]
[1738214594472,0.27132794,677.92,677.08,0.29538606]
[1738214594674,1.10358171,677.81,677.08,0.29538606]
[1738214595074,0.27132794,677.8,677.08,0.29538606]
[1738214595278,0.27132731,677.8,677.08,0.29538606]
[1738214598078,1.10358171,677.79,677.08,0.29538606]
[1738214598281,0.27132731,677.78,677.08,0.29538606]
[1738214599277,1.10358171,677.79,677.08,0.29538606]
[1738214599879,0.27132673,677.78,677.08,0.29538606]
[1738214600280,1.10358171,677.79,677.08,0.29538606]
[1738214600581,0.27132669,677.78,677.08,0.29538606]
[1738214600777,1.10358171,677.79,677.08,0.29538606]
[1738214601078,1.10358171,677.97,677.08,0.29538606]
[1738214601280,0.27132372,677.96,677.08,0.29538606]
[1738214601877,1.10358171,677.97,677.08,0.29538606]
[1738214602077,0.27132576,677.96,677.08,0.29538606]
[1738214604281,0.27132576,677.95,677.08,0.29538606]
[1738214604483,0.27132576,677.94,677.08,0.29538606]
[1738214604683,0.27132576,677.93,677.08,0.29538606]
[1738214604882,0.27132576,677.92,677.08,0.29538606]
[1738214605078,0.27132576,677.91,677.08,0.29538606]
[1738214605383,0.2713452,677.9,676.23,1.09808908]
[1738214605585,0.2713452,677.97,676.25,0.29574861]
[1738214605884,0.2713452,677.96,676.26,0.24287781]
[1738214606086,1.10358171,677.98,676.28,0.29573549]
[1738214606087,0.2713452,677.97,676.28,0.29573549]
[1738214606279,0.2713452,677.96,676.29,0.24287781]
[1738214606585,0.2713452,677.95,676.31,0.29572237]
[1738214606786,0.2713452,677.94,676.32,0.24287781]
[1738214606982,0.27136795,677.93,676.34,0.29570925]
[1738214607187,0.27136795,677.92,676.35,0.24291603]
[1738214607386,0.27136795,677.91,676.37,0.29569614]
[1738214607581,0.27136795,677.9,676.37,0.29569614]
[1738214607784,0.27136795,677.94,676.37,0.29569614]
[1738214607978,0.27136795,677.93,676.37,0.29569614]
[1738214608186,0.27136795,677.94,676.37,0.29569614]
[1738214608382,0.27136795,677.93,676.37,0.29569614]
[1738214608582,0.27136795,677.94,676.37,0.29569614]
[1738214608788,0.27136795,677.93,676.38,0.24292848]
[1738214608986,0.27136795,677.94,676.38,0.24292848]
[1738214609184,0.27136795,677.93,676.38,0.24292848]
[1738214609380,0.27136795,677.94,676.38,0.24292848]
[1738214609585,0.27136795,677.93,676.38,0.24292848]
[1738214609784,0.27136795,677.94,676.4,0.29568302]
[1738214609985,0.27136795,677.94,676.41,0.24292848]
[1738214610182,0.27136795,677.94,676.43,0.29566991]
[1738214610383,0.27136795,677.94,676.44,0.24292848]
[1738214610888,0.27136795,677.94,676.46,0.2956568]
[1738214611090,0.27136795,677.94,676.47,0.24292848]
[1738214611390,1.10358171,677.8,676.48,0.29564806]
[1738214611592,0.27136795,677.79,676.49,0.24292848]
[1738214611888,0.27136795,677.79,676.5,0.29563932]
[1738214613287,0.27136795,677.79,676.51,0.24298676]
[1738214614089,1.10358171,677.75,676.52,0.29563058]
[1738214614284,0.27136795,677.74,676.53,0.24298676]
[1738214614487,0.27136795,677.74,676.54,0.29562184]
[1738214614689,0.27136795,677.74,676.55,0.24298676]
[1738214614890,0.27136795,677.74,676.56,0.2956131]
[1738214615591,0.27136795,677.74,676.57,0.24305367]
[1738214615891,0.27136795,677.74,676.58,0.29560436]
[1738214616093,0.27136795,677.74,676.59,0.24305367]
[1738214616292,0.27136795,677.74,676.6,0.29559562]
[1738214617494,1.10358171,677.71,676.6,0.29559562]
[1738214617688,0.27136795,677.7,676.6,0.29559562]
[1738214618992,0.27136795,677.7,676.61,0.24304556]
[1738214619188,0.27136795,677.7,676.62,0.29558688]
[1738214621195,1.10358171,677.68,676.62,0.29558688]
[1738214621495,0.27136795,677.67,676.62,0.29558688]
[1738214624190,1.10358171,677.68,676.62,0.29558688]
[1738214624392,1.10358171,677.62,676.62,0.29558688]
[1738214624591,0.27136212,677.61,676.62,0.29558688]
[1738214627601,1.10358171,677.54,676.62,0.29558688]
[1738214627898,0.27136212,677.53,676.62,0.29558688]
[1738214628498,1.10358171,677.54,676.62,0.29558688]
[1738214628702,0.27136187,677.53,676.62,0.29558688]
[1738214631503,1.10358171,677.49,676.62,0.29558688]
[1738214632105,0.27137055,677.48,676.62,0.29558688]
[1738214632405,1.10358171,677.49,676.62,0.29558688]
[1738214632600,0.27137384,677.48,676.62,0.29558688]
[1738214635006,1.10358171,677.45,676.62,0.29558688]
[1738214640707,1.10358171,677.45,676.62,1.39367596]
[1738214640912,1.10358171,677.41,676.62,1.39367596]
[1738214642007,1.10358171,677.41,676.63,0.2430947]
[1738214642209,1.10358171,677.41,676.62,1.39367596]
[1738214642415,1.10358171,677.41,676.64,0.29557815]
[1738214644007,1.10358171,677.41,676.66,1.09808908]
[1738214644212,1.10358171,677.41,676.67,0.29556504]
[1738214647415,1.10358171,677.52,676.67,0.29556504]
[1738214650719,1.10358171,677.59,676.67,0.29556504]
[1738214654223,1.10358171,677.9,676.67,0.29556504]
[1738214654224,1.10358171,677.67,676.67,0.29556504]
[1738214656724,1.10358171,677.84,676.67,0.29556504]
[1738214658829,0.27128789,677.83,676.67,0.29556504]
[1738214660532,0.27128753,677.82,676.67,0.29556504]
[1738214660732,1.10358171,677.89,676.67,0.29556504]
[1738214660932,0.27128837,677.88,676.67,0.29556504]
[1738214662833,0.27128837,677.88,676.68,0.24286057]
[1738214663134,0.27128837,677.88,676.7,0.29555194]
[1738214663534,1.10358171,677.87,676.7,0.29555194]
[1738214663733,0.27128837,677.86,676.71,0.24284223]
[1738214664035,0.27128837,677.86,676.73,0.29553884]
[1738214664231,0.27128837,677.86,676.74,0.24284223]
[1738214664432,0.27128837,677.86,676.75,0.2955301]
[1738214664633,0.27128837,677.86,676.76,0.24284223]
[1738214664834,0.27128837,677.86,676.77,0.29552137]
[1738214665129,0.27128837,677.86,676.78,0.24284223]
[1738214665329,0.27128837,677.86,676.79,0.29551264]
[1738214665835,1.10358171,677.87,676.79,0.29551264]
[1738214666037,0.27132431,677.86,676.79,0.29551264]
[1738214668038,1.10358171,677.79,676.79,0.29551264]
[1738214669738,0.27134847,677.78,676.79,0.29551264]
[1738214672337,1.10358171,677.86,676.79,0.29551264]
[1738214672542,0.27138001,677.85,676.79,0.29551264]
[1738214674039,1.10358171,677.86,676.79,0.29551264]
[1738214674247,0.2713811,677.85,676.79,0.29551264]
[1738214674642,1.10358171,677.59,676.79,0.29551264]
[1738214674843,0.2713811,677.58,676.79,0.29551264]
[1738214675143,1.10358171,677.59,676.79,0.29551264]
[1738214677945,1.10358171,677.81,676.79,0.29551264]
[1738214678144,0.27136321,677.8,676.79,0.29551264]
[1738214679136,1.10358171,677.81,676.79,0.29551264]
[1738214680039,1.10358171,677.92,676.79,0.29551264]
[1738214680246,0.27133584,677.91,676.79,0.29551264]
[1738214682444,0.27133584,677.94,676.79,0.29551264]
[1738214682645,0.27133584,677.93,676.79,0.29551264]
[1738214682842,0.27133584,677.94,676.79,0.29551264]
[1738214683045,1.10358171,677.95,676.79,0.29551264]
[1738214683848,0.27126966,677.94,676.79,0.29551264]
[1738214684246,0.27126966,677.94,676.8,0.24285234]
[1738214685049,0.27126966,677.93,676.82,0.29549954]
[1738214685248,0.27126966,678.03,676.82,0.29549954]
[1738214685547,0.27128787,678.02,676.82,0.29549954]
[1738214685748,0.27128787,678.03,676.82,0.29549954]
[1738214686048,0.2712887,678.02,676.82,0.29549954]
[1738214686241,0.2712887,678.01,676.82,0.29549954]
[1738214686445,0.2712887,678.0,676.82,0.29549954]
[1738214686645,0.2712887,677.99,676.82,0.29549954]
[1738214686861,0.2712887,677.98,676.82,0.29549954]
[1738214687046,0.2712887,677.97,676.82,0.29549954]
[1738214687249,0.2712887,678.03,676.82,0.29549954]
[1738214687449,0.2712887,678.02,676.82,0.29549954]
[1738214687649,0.2712887,678.03,676.82,0.29549954]
[1738214688551,1.10358171,678.01,676.82,0.29549954]
[1738214688750,0.2712887,678.0,676.82,0.29549954]
[1738214691650,1.10358171,677.95,676.82,0.29549954]
[1738214691850,0.2712887,677.94,676.82,0.29549954]
[1738214692644,1.10358171,677.95,676.82,0.29549954]
[1738214692645,0.2713134,677.93,676.82,0.29549954]
[1738214692846,0.2713134,677.92,676.82,0.29549954]
[1738214693044,0.2713134,677.91,676.82,0.29549954]
[1738214693242,0.2713134,677.9,676.82,0.29549954]
[1738214693444,0.2713134,677.94,676.82,0.29549954]
[1738214693644,0.2713134,677.93,676.82,0.29549954]
[1738214693844,0.2713134,677.94,676.82,0.29549954]
[1738214694049,0.2713134,677.93,676.82,0.29549954]
[1738214694250,0.2713134,677.94,676.82,0.29549954]
[1738214697649,1.10358171,677.95,676.82,0.29549954]
[1738214699855,1.10358171,677.86,676.82,0.29549954]
[1738214703257,1.10358171,677.98,676.82,0.29549954]
[1738214703457,0.27130496,677.97,676.82,0.29549954]
[1738214703650,1.10358171,677.98,676.82,0.29549954]
[1738214706760,1.10358171,678.02,676.82,0.29549954]
[1738214707865,0.27128593,678.01,676.82,0.29549954]
[1738214709160,1.10358171,678.02,676.82,0.29549954]
[1738214709360,0.27128558,678.01,676.82,0.29549954]
[1738214710470,1.10358171,677.96,676.82,0.29549954]
[1738214710667,0.27128558,677.95,676.82,0.29549954]
[1738214710965,0.27128766,677.94,676.82,0.29549954]
[1738214711162,0.27128766,677.95,676.82,0.29549954]
[1738214711465,0.27128766,677.94,676.82,0.29549954]
[1738214711659,0.27128766,677.95,676.82,0.29549954]
[1738214711861,0.27128766,677.94,676.82,0.29549954]
[1738214712166,0.27128766,677.93,676.82,0.29549954]
[1738214712365,0.27128766,677.95,676.82,0.29549954]
[1738214712567,0.27128766,677.94,676.82,0.29549954]
[1738214712768,0.27128766,677.95,676.82,0.29549954]
[1738214712963,0.27128766,677.94,676.82,0.29549954]
[1738214713164,1.10358171,677.91,676.82,0.29549954]
[1738214713365,0.27128766,677.9,676.82,0.29549954]
[1738214714068,1.10358171,677.91,676.82,0.29549954]
[1738214714370,0.27128443,677.9,676.82,0.29549954]
[1738214716278,1.10358171,677.86,676.82,0.29549954]
[1738214716579,0.27128443,677.85,676.82,0.29549954]
[1738214718677,1.10358171,677.74,676.82,0.29549954]
[1738214719677,0.27130426,677.73,676.82,0.29549954]
[1738214720678,1.10358171,677.74,676.82,0.29549954]
[1738214720875,0.27131671,677.73,676.82,0.29549954]
[1738214721982,1.10358171,677.6,676.82,0.29549954]
[1738214724984,1.10358171,677.63,676.82,0.29549954]
[1738214728686,1.10358171,677.65,676.82,0.29549954]
[1738214730988,0.27132942,677.64,676.82,0.29549954]
[1738214734089,1.10358171,677.65,676.82,0.29549954]
[1738214734390,0.27132333,677.64,676.82,0.29549954]
[1738214735290,1.10358171,677.61,676.82,0.29549954]
[1738214735492,0.27132333,677.6,676.82,0.29549954]
[1738214735791,1.10358171,677.61,676.82,0.29549954]
[1738214738594,1.10358171,677.61,676.78,0.295517]
[1738214739496,1.10358171,677.65,676.78,0.295517]
[1738214742198,1.10358171,677.71,676.78,0.295517]
[1738214745398,0.76884293,678.22,676.78,0.295517]
[1738214745399,1.10358171,677.76,676.78,0.295517]
[1738214745591,0.27128218,677.75,676.78,0.295517]
[1738214745791,0.27128218,677.75,676.79,0.2429334]
[1738214745995,0.27128218,677.75,676.8,0.29550827]
[1738214746202,1.10358171,677.76,676.8,0.29550827]
[1738214746394,0.27127197,677.75,676.8,0.29550827]
[1738214747899,1.10358171,677.76,676.8,0.29550827]
[1738214749498,1.10358171,677.75,676.8,0.29550827]
[1738214752306,1.10358171,677.8,676.8,0.29550827]
[1738214755709,1.10358171,678.05,676.8,0.29550827]
[1738214757611,0.27124592,678.04,676.8,0.29550827]
[1738214759607,0.27124592,678.03,676.8,0.29550827]
[1738214759810,0.27124592,678.08,676.8,0.29550827]
[1738214760009,0.27124592,678.07,676.8,0.29550827]
[1738214760310,0.27124592,678.06,676.8,0.29550827]
[1738214760509,0.27124592,678.08,676.8,0.29550827]
[1738214760709,0.27124592,678.07,676.8,0.29550827]
[1738214760910,0.27129978,678.06,676.8,0.29550827]
[1738214761110,0.27129978,678.08,676.8,0.29550827]
[1738214761411,0.27129978,678.07,676.8,0.29550827]
[1738214761711,0.27129978,678.06,676.8,0.29550827]
[1738214761903,0.27129978,678.08,676.8,0.29550827]
[1738214762209,2.87123727,678.47,676.8,0.29550827]
[1738214762210,1.10358171,677.97,676.8,0.29550827]
[1738214762408,0.27129978,677.96,676.8,0.29550827]
[1738214765609,1.10358171,677.74,676.8,0.29550827]
[1738214765814,0.27129978,677.73,676.8,0.29550827]
[1738214767914,1.37488149,677.73,676.8,0.29550827]
[1738214768115,0.27129978,677.72,676.8,0.29550827]
[1738214770413,1.10358171,677.71,676.8,0.29550827]
[1738214770618,0.27129978,677.7,676.8,0.29550827]
[1738214770814,0.27129589,677.69,676.8,0.29550827]
[1738214771014,0.27129589,677.7,676.8,0.29550827]
[1738214771215,0.27129589,677.69,676.8,0.29550827]
[1738214771414,0.27129589,677.68,676.8,0.29550827]
[1738214771612,0.27129589,677.67,676.8,0.29550827]
[1738214771809,0.27129589,677.66,676.8,0.29550827]
[1738214772015,0.27129589,677.7,676.8,0.29550827]
[1738214772415,1.10358171,677.71,676.8,0.29550827]
[1738214772616,0.27129835,677.7,676.8,0.29550827]
[1738214773816,1.10358171,677.67,676.8,0.29550827]
[1738214774114,0.27129808,677.66,676.8,0.29550827]
[1738214776722,1.10358171,677.65,676.8,0.29550827]
[1738214776921,0.27129808,677.64,676.8,0.29550827]
[1738214779217,1.10358171,677.65,676.8,0.29550827]
[1738214779218,0.27130018,677.63,676.8,0.29550827]
[1738214779424,1.10358171,677.65,676.8,0.29550827]
[1738214779624,0.27130046,677.64,676.8,0.29550827]
[1738214781028,1.10358171,677.65,676.8,0.29550827]
[1738214781225,0.27130193,677.64,676.8,0.29550827]
[1738214783332,1.37488364,677.64,676.8,0.29550827]
[1738214783527,0.27130193,677.63,676.8,0.29550827]
[1738214783725,0.27130323,677.62,676.8,0.29550827]
[1738214783925,1.10358171,677.64,676.8,0.29550827]
[1738214784129,0.27130659,677.63,676.8,0.29550827]
[1738214784426,0.27130671,677.62,676.8,0.29550827]
[1738214784730,0.27130671,677.63,676.8,0.29550827]
[1738214784932,1.10358171,677.64,676.8,0.29550827]
[1738214785133,0.27130599,677.63,676.8,0.29550827]
[1738214786832,0.27130599,677.62,676.8,0.29550827]
[1738214787030,1.10358171,677.65,676.8,0.29550827]
[1738214787227,0.2713054,677.64,676.8,0.29550827]
[1738214787931,0.27130465,677.63,676.8,0.29550827]
[1738214788132,0.27130465,677.64,676.8,0.29550827]
[1738214788432,0.27130465,677.63,676.8,0.29550827]
[1738214788634,0.27130465,677.64,676.8,0.29550827]
[1738214788832,1.10358171,677.65,676.8,0.29550827]
[1738214788833,0.27130465,677.63,676.8,0.29550827]
[1738214789033,0.27130465,677.62,676.8,0.29550827]
[1738214789236,1.10358171,677.65,676.8,0.29550827]
[1738214789535,0.27130567,677.64,676.8,0.29550827]
[1738214791940,1.10358171,677.61,676.8,0.29550827]
[1738214792139,0.27130567,677.6,676.8,0.29550827]
[1738214792840,1.10358171,677.61,676.8,0.29550827]
[1738214793039,0.27132646,677.6,676.8,0.29550827]
[1738214794537,1.10358171,677.61,676.8,0.29550827]
[1738214794742,0.27131746,677.6,676.8,0.29550827]
[1738214795240,1.10358171,677.5,676.8,0.29550827]
[1738214797849,0.5423871,683.7,676.8,0.29550827]
[1738214797850,1.10358171,677.53,676.8,0.29550827]
[1738214801856,1.10358171,677.55,676.8,0.29550827]
[1738214810858,1.10358171,677.58,676.8,0.29550827]
[1738214813466,2.25314599,678.16,676.8,0.29550827]
[1738214813467,1.10358171,677.6,676.8,0.29550827]
[1738214815862,1.10358171,677.59,676.8,0.29550827]
[1738214818166,0.27134326,677.58,676.8,0.29550827]
[1738214819270,1.10358171,677.54,676.8,0.29550827]
[1738214821575,0.27134941,677.53,676.8,0.29550827]
[1738214822076,1.10358171,677.54,676.8,0.29550827]
[1738214822271,0.27135104,677.53,676.8,0.29550827]
[1738214822473,1.10358171,677.51,676.8,0.29550827]
[1738214824278,0.27135818,677.5,676.8,0.29550827]
[1738214825084,1.10358171,677.49,676.8,0.29550827]
[1738214825280,0.27135818,677.48,676.8,0.29550827]
[1738214825474,1.10358171,677.49,676.8,0.29550827]
[1738214825676,0.27137062,677.48,676.8,0.29550827]
[1738214827076,1.10358171,677.49,676.8,0.29550827]
[1738214827277,0.27136435,677.48,676.8,0.29550827]
[1738214828374,1.37494606,677.48,676.8,0.29550827]
[1738214828578,0.27136435,677.47,676.8,0.29550827]
[1738214828977,1.10358171,677.48,676.8,0.29550827]
[1738214829678,0.27136358,677.47,676.8,0.29550827]
[1738214831678,0.27136358,677.46,676.8,0.29550827]
[1738214831878,1.10358171,677.51,676.8,0.29550827]
[1738214832079,0.27136759,677.5,676.8,0.29550827]
[1738214832279,1.10358171,677.51,676.8,0.29550827]
[1738214834681,1.10358171,677.57,676.8,0.29550827]
[1738214834880,0.27136928,677.56,676.8,0.29550827]
[1738214835681,1.10358171,677.57,676.8,0.29550827]
[1738214835880,0.27136946,677.56,676.8,0.29550827]
[1738214836481,1.10358171,677.57,676.8,0.29550827]
[1738214838079,1.10358171,677.56,676.8,0.29550827]
[1738214841183,1.32429805,678.02,676.8,0.29550827]
[1738214841184,1.10358171,677.69,676.8,0.29550827]
[1738214841384,0.27131898,677.68,676.8,0.29550827]
[1738214842281,1.10358171,677.69,676.8,0.29550827]
[1738214842482,0.27131333,677.68,676.8,0.29550827]
[1738214844986,1.10358171,677.67,676.8,0.29550827]
[1738214845285,0.27131333,677.66,676.8,0.29550827]
[1738214845780,0.27131701,677.65,676.8,0.29550827]
[1738214846083,0.27131701,677.64,676.8,0.29550827]
[1738214846285,0.27131701,677.63,676.8,0.29550827]
[1738214846581,0.27131701,677.66,676.8,0.29550827]
[1738214846785,0.27131701,677.65,676.8,0.29550827]
[1738214846986,0.27131701,677.64,676.8,0.29550827]
[1738214847185,0.27131701,677.63,676.8,0.29550827]
[1738214847385,0.27133174,677.62,676.8,0.29550827]
[1738214847585,0.27133174,677.61,676.8,0.29550827]
[1738214847779,0.27133174,677.66,676.8,0.29550827]
[1738214847985,0.27133174,677.65,676.8,0.29550827]
[1738214848179,1.37491345,677.64,676.8,0.29550827]
[1738214848378,0.27133174,677.63,676.8,0.29550827]
[1738214849086,0.27133622,677.62,676.8,0.29550827]
[1738214849280,0.27133622,677.63,676.8,0.29550827]
[1738214849477,0.27133622,677.62,676.8,0.29550827]
[1738214849685,0.27133622,677.61,676.8,0.29550827]
[1738214849884,0.27133622,677.6,676.8,0.29550827]
[1738214850085,0.27133622,677.59,676.8,0.29550827]
[1738214850280,1.10358171,677.64,676.8,0.29550827]
[1738214850484,0.27133518,677.63,676.8,0.29550827]
[1738214851086,1.10358171,677.61,676.8,0.29550827]
[1738214851285,0.27133518,677.6,676.8,0.29550827]
[1738214851988,1.10358171,677.61,676.8,0.29550827]
[1738214854290,1.10358171,677.84,676.8,0.29550827]
[1738214861295,1.10358171,677.9,676.8,0.29550827]
[1738214861697,0.27131094,677.89,676.8,0.29550827]
[1738214864598,1.10358171,677.75,676.8,0.29550827]
[1738214865399,0.27132819,677.74,676.8,0.29550827]
[1738214865599,0.27132782,677.73,676.8,0.29550827]
[1738214865792,1.10358171,677.75,676.8,0.29550827]
[1738214865994,0.2713286,677.74,676.8,0.29550827]
[1738214866598,1.10358171,677.75,676.8,0.29550827]
[1738214866799,0.27132766,677.74,676.8,0.29550827]
[1738214867700,1.10358171,677.69,676.8,0.29550827]
[1738214871099,1.10358171,677.66,676.8,0.29550827]
[1738214872403,0.27135404,677.65,676.8,0.29550827]
[1738214874506,1.10358171,677.57,676.8,0.29550827]
[1738214874806,0.27135404,677.56,676.8,0.29550827]
[1738214875301,1.10358171,677.57,676.8,0.29550827]
[1738214875505,0.27135612,677.56,676.8,0.29550827]
[1738214875809,1.10358171,677.57,676.8,0.29550827]
[1738214876007,0.27135594,677.56,676.8,0.29550827]
[1738214877709,1.10358171,677.47,676.8,0.29550827]
[1738214883115,1.10358171,677.49,676.8,0.29550827]
[1738214883309,0.27137216,677.48,676.8,0.29550827]
[1738214885112,0.27136631,677.47,676.8,0.29550827]
[1738214885311,1.10358171,677.49,676.8,0.29550827]
[1738214885516,0.27136606,677.48,676.8,0.29550827]
[1738214886818,0.27136644,677.47,676.8,0.29550827]
[1738214887012,0.27136644,677.46,676.8,0.29550827]
[1738214887317,1.10358171,677.49,676.8,0.29550827]
[1738214887518,0.27136608,677.48,676.8,0.29550827]
[1738214888218,1.10358171,677.49,676.8,0.29550827]
[1738214888816,1.10358171,677.67,676.8,0.29550827]